bitfinex/quotes_BTCUSD_20250608
["timestamp","ask_amount","ask_price","bid_price","bid_amount"]
[1749410533943,0.94488484,106420.0,106410.0,0.00029636]
[1749410534143,0.92726674,106420.0,106410.0,0.00029636]
[1749410534381,0.94488484,106420.0,106410.0,0.00029636]
[1749410534611,0.94488483,106420.0,106410.0,0.00029636]
[1749410534962,0.92726674,106420.0,106410.0,0.00029636]
[1749410535133,0.94488484,106420.0,106410.0,0.00029636]
[1749410536039,0.94488428,106420.0,106410.0,0.00029636]
[1749410536494,0.8484848,106420.0,106410.0,0.00029636]
[1749410537495,0.84848465,106420.0,106410.0,0.00029636]
[1749410537693,0.84848466,106420.0,106410.0,0.00029636]
[1749410538076,0.83086726,106420.0,106410.0,0.00029636]
[1749410538301,0.84848401,106420.0,106410.0,0.00029636]
[1749410538934,0.85792593,106420.0,106410.0,0.00029636]
[1749410539455,0.84030918,106420.0,106410.0,0.00029636]
[1749410539996,0.85792722,106420.0,106410.0,0.00029636]
[1749410540195,0.83086726,106420.0,106410.0,0.00029636]
[1749410540394,0.84848676,106420.0,106410.0,0.00029636]
[1749410540586,0.83258676,106420.0,106410.0,0.00029636]
[1749410541210,0.83258633,106420.0,106410.0,0.00029636]
[1749410541810,0.89788717,106420.0,106410.0,0.00029636]
[1749410542144,0.91428717,106420.0,106410.0,0.00029636]
[1749410542759,0.83136726,106420.0,106410.0,0.00029636]
[1749410543134,0.81496726,106420.0,106410.0,0.00029636]
[1749410543659,0.83258686,106420.0,106410.0,0.00029636]
[1749410543840,0.81496726,106420.0,106410.0,0.00029636]
[1749410544210,0.83258696,106420.0,106410.0,0.00029636]
[1749410544811,0.91136674,106420.0,106410.0,0.00029636]
[1749410544985,0.92898574,106420.0,106410.0,0.00029636]
[1749410545128,0.91136674,106420.0,106410.0,0.00029636]
[1749410545581,0.92898597,106420.0,106410.0,0.00029636]
[1749410545951,0.91136674,106420.0,106410.0,0.00029636]
[1749410546161,0.92898596,106420.0,106410.0,0.00029636]
[1749410546367,0.91136674,106420.0,106410.0,0.00029636]
[1749410546567,0.92898596,106420.0,106410.0,0.00029636]
[1749410546828,0.91136674,106420.0,106410.0,0.00029636]
[1749410547042,0.84208098,106420.0,106410.0,0.00029636]
[1749410547281,0.84208094,106420.0,106410.0,0.00029636]
[1749410547492,0.84208097,106420.0,106410.0,0.00029636]
[1749410547848,0.84208103,106420.0,106410.0,0.00029636]
[1749410548484,0.84208174,106420.0,106410.0,0.00029636]
[1749410549063,0.84208173,106420.0,106410.0,0.00029636]
[1749410549284,0.82446173,106420.0,106410.0,0.00029636]
[1749410549503,0.84208173,106420.0,106410.0,0.00029636]
[1749410550356,0.83258726,106420.0,106410.0,0.00029636]
[1749410550575,0.81496726,106420.0,106410.0,0.00029636]
[1749410550790,0.83258725,106420.0,106410.0,0.00029636]
[1749410551008,0.81496726,106420.0,106410.0,0.00029636]
[1749410551224,0.83258726,106420.0,106410.0,0.00029636]
[1749410551444,0.81496726,106420.0,106410.0,0.00029636]
[1749410551659,0.83258873,106420.0,106410.0,0.00029636]
[1749410552323,0.79966726,106420.0,106410.0,0.00029636]
[1749410552758,0.76652164,106420.0,106410.0,0.00029636]
[1749410552976,0.81726941,106420.0,106410.0,0.00029636]
[1749410553192,0.79964796,106420.0,106410.0,0.00029636]
[1749410553393,0.81726941,106420.0,106410.0,0.00029636]
[1749410554525,0.79964796,106420.0,106410.0,0.00029636]
[1749410554734,0.81594796,106420.0,106410.0,0.00029636]
[1749410554947,0.83356941,106420.0,106410.0,0.00029636]
[1749410555152,0.83356944,106420.0,106410.0,0.00029636]
[1749410555947,0.83356995,106420.0,106410.0,0.00029636]
[1749410556386,0.83356996,106420.0,106410.0,0.00029636]
[1749410557393,0.83357736,106420.0,106410.0,0.00029636]
[1749410557599,0.84298362,106420.0,106410.0,0.00029636]
[1749410557993,0.82535422,106420.0,106410.0,0.00029636]
[1749410558213,0.84298366,106420.0,106410.0,0.00029636]
[1749410558431,0.84298364,106420.0,106410.0,0.00029636]
[1749410558653,0.82535422,106420.0,106410.0,0.00029636]
[1749410558867,0.84298364,106420.0,106410.0,0.00029636]
[1749410559528,0.82535422,106420.0,106410.0,0.00029636]
[1749410560216,0.8429837,106420.0,106410.0,0.00029636]
[1749410560404,0.81594796,106420.0,106410.0,0.00029636]
[1749410560659,0.83357744,106420.0,106410.0,0.00029636]
[1749410560917,0.79964796,106420.0,106410.0,0.00029636]
[1749410561132,0.81727744,106420.0,106410.0,0.00029636]
[1749410561375,0.81818621,106420.0,106410.0,0.00029636]
[1749410561593,0.83581568,106420.0,106410.0,0.00029636]
[1749410562518,0.81727743,106420.0,106410.0,0.00029636]
[1749410563182,0.81727747,106420.0,106410.0,0.00029636]
[1749410563398,0.81727754,106420.0,106410.0,0.00029636]
[1749410563867,0.81727753,106420.0,106410.0,0.00029636]
[1749410564087,0.79964796,106420.0,106410.0,0.00029636]
[1749410564535,0.81727755,106420.0,106410.0,0.00029636]
[1749410564946,0.81727754,106420.0,106410.0,0.00029636]
[1749410565275,0.79964796,106420.0,106410.0,0.00029636]
[1749410566161,0.81727754,106420.0,106410.0,0.00029636]
[1749410566385,0.81727755,106420.0,106410.0,0.00029636]
[1749410566863,0.79964796,106420.0,106410.0,0.00029636]
[1749410567519,0.81727757,106420.0,106410.0,0.00029636]
[1749410567652,0.84317109,106420.0,106410.0,0.00029636]
[1749410568022,0.82554148,106420.0,106410.0,0.00029636]
[1749410568677,0.80914148,106420.0,106410.0,0.00029636]
[1749410570454,0.79964796,106420.0,106410.0,0.00029636]
[1749410576702,0.8107898,106420.0,106410.0,0.00029636]
[1749410577823,0.82024673,106420.0,106410.0,0.00029636]
[1749410580436,0.8107898,106420.0,106410.0,0.00029636]
[1749410587406,0.79964796,106420.0,106410.0,0.00029636]
[1749410587863,0.80736977,106420.0,106410.0,0.00029636]
[1749410590537,0.79821688,106420.0,106410.0,0.00029636]
[1749410597815,0.80745986,106420.0,106410.0,0.00029636]
[1749410600042,0.80745986,106420.0,106410.0,0.01669636]
[1749410600260,0.79821688,106420.0,106410.0,0.01669636]
[1749410601119,0.81661256,106420.0,106410.0,0.01669636]
[1749410603322,0.79821688,106420.0,106410.0,0.01669636]
[1749410607228,0.8077151,106420.0,106410.0,0.01669636]
[1749410607684,1.0933551,106420.0,106410.0,0.01669636]
[1749410609570,1.0933151,106420.0,106410.0,0.01669636]
[1749410610170,1.08381688,106420.0,106410.0,0.01669636]
[1749410616334,1.09335169,106420.0,106410.0,0.01669636]
[1749410618624,1.09331169,106420.0,106410.0,0.03299636]
[1749410619247,0.72059169,106420.0,106410.0,0.03299636]
[1749410619455,1.09331169,106420.0,106410.0,0.03299636]
[1749410619858,1.05572057,106420.0,106410.0,0.03299636]
[1749410620474,1.04618576,106420.0,106410.0,0.03299636]
[1749410628475,1.05536165,106420.0,106410.0,0.03299636]
[1749410630487,1.04618576,106420.0,106410.0,0.03299636]
[1749410632446,0.67346576,106420.0,106410.0,0.03299636]
[1749410632662,1.04614576,106420.0,106410.0,0.03299636]
[1749410636902,1.05531023,106420.0,106410.0,0.03299636]
[1749410640383,1.04614576,106420.0,106410.0,0.03299636]
[1749410643336,1.04614393,106420.0,106410.0,0.03299636]
[1749410644789,0.67346393,106420.0,106410.0,0.03299636]
[1749410644997,0.76054393,106420.0,106410.0,0.03299636]
[1749410649310,0.77010711,106420.0,106410.0,0.03299636]
[1749410650790,0.76054393,106420.0,106410.0,0.03299636]
[1749410654904,0.66414445,106420.0,106410.0,0.03299636]
[1749410658975,0.67342239,106420.0,106410.0,0.03299636]
[1749410662242,0.58634239,106420.0,106410.0,0.03299636]
[1749410662446,0.67342239,106420.0,106410.0,0.03299636]
[1749410665602,0.66414445,106420.0,106410.0,0.03299636]
[1749410671090,0.66814445,106420.0,106410.0,0.03299636]
[1749410673507,0.67771138,106420.0,106410.0,0.03299636]
[1749410675554,0.66814445,106420.0,106410.0,0.03299636]
[1749410678362,0.58106445,106420.0,106410.0,0.03299636]
[1749410679281,0.66810445,106420.0,106410.0,0.03299636]
[1749410684548,0.67756611,106420.0,106410.0,0.03299636]
[1749410684985,0.67756611,106420.0,106410.0,0.03499636]
[1749410685885,0.66810445,106420.0,106410.0,0.03499636]
[1749410691091,0.66810445,106420.0,106410.0,0.01869636]
[1749410694289,0.67759895,106420.0,106410.0,0.01869636]
[1749410700460,0.66810445,106420.0,106410.0,0.01869636]
[1749410703726,0.66810445,106420.0,106410.0,0.03449636]
[1749410705979,0.66810445,106420.0,106410.0,0.01869636]
[1749410708244,0.58106445,106420.0,106410.0,0.01869636]
[1749410708454,0.66806445,106420.0,106410.0,0.03369636]
[1749410709068,0.67760305,106420.0,106410.0,0.03369636]
[1749410710460,0.66806445,106420.0,106410.0,0.03369636]
[1749410710703,0.58106445,106420.0,106410.0,0.03369636]
[1749410716642,0.59023514,106420.0,106410.0,0.03369636]
[1749410720643,0.58106445,106420.0,106410.0,0.01869636]
[1749410722131,0.58108131,106420.0,106410.0,0.01869636]
[1749410726172,0.59029515,106420.0,106410.0,0.01869636]
[1749410726816,0.59029515,106420.0,106410.0,0.00229636]
[1749410727922,0.60649515,106420.0,106410.0,0.00229636]
[1749410728384,0.70289463,106420.0,106410.0,0.00229636]
[1749410728837,0.68669463,106420.0,106410.0,0.00229636]
[1749410730611,0.67748079,106420.0,106410.0,0.00229636]
[1749410736222,0.68709808,106420.0,106410.0,0.00229636]
[1749410740486,0.67748079,106420.0,106410.0,0.00229636]
[1749410742009,0.19734969,106410.0,106400.0,0.04899636]
[1749410743267,0.20034969,106410.0,106400.0,0.04899636]
[1749410743478,0.20034969,106410.0,106400.0,0.05199636]
[1749410744366,0.20034969,106410.0,106400.0,0.02019636]
[1749410744583,0.40795506,106410.0,106400.0,0.02019636]
[1749410744795,0.37575506,106410.0,106400.0,0.02019636]
[1749410745069,0.29674917,106410.0,106400.0,0.02019636]
[1749410750472,0.29674917,106410.0,106400.0,0.03659636]
[1749410753054,0.20034969,106410.0,106400.0,0.03659636]
[1749410753260,0.20034969,106410.0,106400.0,0.05249636]
[1749410788339,0.20034969,106410.0,106400.0,0.03659636]
[1749410789087,0.20034969,106410.0,106400.0,0.05159636]
[1749410790142,0.20034969,106410.0,106400.0,0.03659636]
[1749410813511,0.2898549,106410.0,106400.0,0.03659636]
[1749410813950,0.20034969,106410.0,106400.0,0.03659636]
[1749410837846,0.19095226,106410.0,106400.0,0.03659636]
[1749410838050,0.20034969,106410.0,106400.0,0.03659636]
[1749410838731,0.20034969,106410.0,106400.0,0.02019636]
[1749410838954,0.23154969,106410.0,106400.0,0.02019636]
[1749410839188,0.25000994,106410.0,106400.0,0.02019636]
[1749410839412,0.32794917,106410.0,106400.0,0.02019636]
[1749410839851,0.35051089,106410.0,106400.0,0.01719636]
[1749410840075,0.34751089,106410.0,106400.0,0.01719636]
[1749410840528,0.35151089,106410.0,106400.0,0.01719636]
[1749410840734,0.35151089,106410.0,106400.0,0.01819636]
[1749410842503,0.35150931,106410.0,106400.0,0.01819636]
[1749410843676,0.32894917,106410.0,106400.0,0.01819636]
[1749410843915,0.33630931,106410.0,106400.0,0.01819636]
[1749410844145,0.32030931,106410.0,106400.0,0.01819636]
[1749410845470,0.29774917,106410.0,106400.0,0.01819636]
[1749410846591,0.20134969,106410.0,106400.0,0.04929636]
[1749410869278,0.20134969,106410.0,106400.0,0.03389636]
[1749410872472,0.20134969,106410.0,106400.0,0.04949636]
[1749410888202,0.20134969,106410.0,106400.0,0.03389636]
[1749410892581,0.20134969,106410.0,106400.0,0.01819636]
[1749410896131,0.20134969,106410.0,106400.0,0.03439636]
[1749410902404,0.22391493,106410.0,106400.0,0.03439636]
[1749410902617,0.22391583,106410.0,106400.0,0.03439636]
[1749410905950,0.20134969,106410.0,106400.0,0.03439636]
[1749410914619,0.20134969,106410.0,106400.0,0.03403241]
[1749410919506,0.20134969,106410.0,106400.0,0.01783241]
[1749410924917,0.29774917,106410.0,106400.0,0.01783241]
[1749410925954,0.31314917,106410.0,106400.0,0.01783241]
[1749410926163,0.32914917,106410.0,106400.0,0.01783241]
[1749410926808,0.29774917,106410.0,106400.0,0.01783241]
[1749410952908,0.20134969,106410.0,106400.0,0.01783241]
[1749410961021,0.21897915,106410.0,106400.0,0.01783241]
[1749410962593,0.21897913,106410.0,106400.0,0.01783241]
[1749410965012,0.21897912,106410.0,106400.0,0.01783241]
[1749410966341,0.20134969,106410.0,106400.0,0.01783241]
[1749410966577,0.21897911,106410.0,106400.0,0.01783241]
[1749410967008,0.2189791,106410.0,106400.0,0.01783241]
[1749410969449,0.21897909,106410.0,106400.0,0.01783241]
[1749410970541,0.21897909,106410.0,106400.0,0.03393241]
[1749410971873,0.21897907,106410.0,106400.0,0.03393241]
[1749410972949,0.21897908,106410.0,106400.0,0.03393241]
[1749410973181,0.20134969,106410.0,106400.0,0.03393241]
[1749410973410,0.21897907,106410.0,106400.0,0.03393241]
[1749410975620,0.20134969,106410.0,106400.0,0.03393241]
[1749410975822,0.21897907,106410.0,106400.0,0.03393241]
[1749410976656,0.21897906,106410.0,106400.0,0.03393241]
[1749410977925,0.21897905,106410.0,106400.0,0.03393241]
[1749410979846,0.21897906,106410.0,106400.0,0.03393241]
[1749410980275,0.21897907,106410.0,106400.0,0.03393241]
[1749410980932,0.21897912,106410.0,106400.0,0.03393241]
[1749410982812,0.20134969,106410.0,106400.0,0.03393241]
[1749410982991,0.21897914,106410.0,106400.0,0.03393241]
[1749410984603,0.21897913,106410.0,106400.0,0.03393241]
[1749410984813,0.20134969,106410.0,106400.0,0.03393241]
[1749410985014,0.21897913,106410.0,106400.0,0.03393241]
[1749410986300,0.21897914,106410.0,106400.0,0.03393241]
[1749410986461,0.31537862,106410.0,106400.0,0.03393241]
[1749410987665,0.29774917,106410.0,106400.0,0.03393241]
[1749410987869,0.31537862,106410.0,106400.0,0.03393241]
[1749410988510,0.31537863,106410.0,106400.0,0.03393241]
[1749410988914,0.31537872,106410.0,106400.0,0.03393241]
[1749410991204,0.31537889,106410.0,106400.0,0.03393241]
[1749410991823,0.21897941,106410.0,106400.0,0.03393241]
[1749410992378,0.21897942,106410.0,106400.0,0.03393241]
[1749410994111,0.20134969,106410.0,106400.0,0.03393241]
[1749410994320,0.21897939,106410.0,106400.0,0.03393241]
[1749410995461,0.20134969,106410.0,106400.0,0.03393241]
[1749410995690,0.21897937,106410.0,106400.0,0.03393241]
[1749410995891,0.20134969,106410.0,106400.0,0.03393241]
[1749410996100,0.21897937,106410.0,106400.0,0.03393241]
[1749410997041,0.21897936,106410.0,106400.0,0.03393241]
[1749410998995,0.21897918,106410.0,106400.0,0.03393241]
[1749410999455,0.21897926,106410.0,106400.0,0.03393241]
[1749410999658,0.29774917,106410.0,106400.0,0.03393241]
[1749410999883,0.31537874,106410.0,106400.0,0.03393241]
[1749411000768,0.29774917,106410.0,106400.0,0.03393241]
[1749411000944,0.31537884,106410.0,106400.0,0.03393241]
[1749411001318,0.21897936,106410.0,106400.0,0.03393241]
[1749411002809,0.21897935,106410.0,106400.0,0.03393241]
[1749411003014,0.20134969,106410.0,106400.0,0.03393241]
[1749411003251,0.21897935,106410.0,106400.0,0.03393241]
[1749411006238,0.20134969,106410.0,106400.0,0.03393241]
[1749411006443,0.21897935,106410.0,106400.0,0.03393241]
[1749411007239,0.20134969,106410.0,106400.0,0.03393241]
[1749411007925,0.21897936,106410.0,106400.0,0.03393241]
[1749411008123,0.20134969,106410.0,106400.0,0.03393241]
[1749411008332,0.21897936,106410.0,106400.0,0.03393241]
[1749411009443,0.20134969,106410.0,106400.0,0.03393241]
[1749411009675,0.21897936,106410.0,106400.0,0.03393241]
[1749411011125,0.21897937,106410.0,106400.0,0.03393241]
[1749411011357,0.20134969,106410.0,106400.0,0.03393241]
[1749411011562,0.21897937,106410.0,106400.0,0.03393241]
[1749411012526,0.20134969,106410.0,106400.0,0.03393241]
[1749411042872,0.27776185,106410.0,106400.0,0.03393241]
[1749411043083,0.20134969,106410.0,106400.0,0.03393241]
[1749411062953,0.20134969,106410.0,106400.0,0.01783241]
[1749411065649,0.20134969,106410.0,106400.0,0.05003241]
[1749411082677,0.20134969,106410.0,106400.0,0.03433241]
[1749411087661,0.20134969,106410.0,106400.0,0.05073241]
[1749411090626,0.20134969,106410.0,106400.0,0.03433241]
[1749411105012,0.20134969,106410.0,106400.0,0.06397326]
[1749411105220,0.21074703,106410.0,106400.0,0.25194318]
[1749411105420,0.20134969,106410.0,106400.0,0.06397326]
[1749411105621,0.20134969,106410.0,106400.0,0.07337175]
[1749411105825,0.20134969,106410.0,106400.0,0.27074007]
[1749411106249,0.20134969,106410.0,106400.0,0.26134167]
[1749411106453,0.19195226,106410.0,106400.0,0.06397326]
[1749411106987,0.19195226,106410.0,106400.0,0.25194318]
[1749411107191,0.19195226,106410.0,106400.0,0.26134149]
[1749411107418,0.19195226,106410.0,106400.0,0.26134167]
[1749411107818,0.19195226,106410.0,106400.0,0.06397326]
[1749411108231,0.19195226,106410.0,106400.0,0.34834266]
[1749411108430,0.19195226,106410.0,106400.0,0.35774106]
[1749411108621,0.19195226,106410.0,106400.0,0.36713937]
[1749411114062,0.19195226,106410.0,106400.0,0.35774106]
[1749411115734,0.19195226,106410.0,106400.0,0.35761587]
[1749411128904,0.19195226,106410.0,106400.0,0.36701418]
[1749411138277,0.19195226,106410.0,106400.0,0.35761587]
[1749411141742,0.20134987,106410.0,106400.0,0.35761587]
[1749411141964,0.20134987,106410.0,106400.0,0.36701418]
[1749411142434,0.20134987,106410.0,106400.0,0.35761587]
[1749411144626,0.20134987,106410.0,106400.0,0.36701418]
[1749411144846,0.20134987,106410.0,106400.0,0.35761587]
[1749411148006,0.20134987,106410.0,106400.0,0.34821747]
[1749411150912,0.20134987,106410.0,106400.0,0.35761596]
[1749411152040,0.20134987,106410.0,106400.0,0.36701436]
[1749411153911,0.20134987,106410.0,106400.0,0.37641267]
[1749411157195,0.20134987,106410.0,106400.0,0.16964604]
[1749411158102,0.20134987,106410.0,106400.0,0.35761596]
[1749411158397,0.20134987,106410.0,106400.0,0.34251596]
[1749411158745,0.20134987,106410.0,106400.0,0.35191436]
[1749411159574,0.20134987,106410.0,106400.0,0.36131267]
[1749411160627,0.20134987,106410.0,106400.0,0.35191436]
[1749411162310,0.19195226,106410.0,106400.0,0.34251596]
[1749411163555,0.19195226,106410.0,106400.0,0.15454604]
[1749411164187,0.19195226,106410.0,106400.0,0.64295596]
[1749411164392,0.21074721,106410.0,106400.0,0.65235427]
[1749411164593,0.21074721,106410.0,106400.0,0.64295596]
[1749411169191,0.21074721,106410.0,106400.0,0.65235436]
[1749411171121,0.02279442,106410.0,106400.0,0.65235436]
[1749411171390,0.01339681,106410.0,106400.0,1.26800083]
[1749411172374,0.0227938,106410.0,106400.0,1.26800083]
[1749411173583,0.02279371,106410.0,106400.0,1.26800083]
[1749411174223,0.01339681,106410.0,106400.0,1.26800083]
[1749411174427,0.0227938,106410.0,106400.0,1.26800083]
[1749411174852,0.0415884,106410.0,106400.0,0.67115037]
[1749411175054,0.22954146,106410.0,106400.0,0.67111072]
[1749411175780,0.22014447,106410.0,106400.0,0.66171267]
[1749411175960,0.22014447,106410.0,106400.0,0.67111081]
[1749411176157,0.22014447,106410.0,106400.0,0.39550886]
[1749411176335,0.22014447,106410.0,106400.0,0.68050886]
[1749411176782,0.22014447,106410.0,106400.0,0.39550886]
[1749411176956,0.20134987,106410.0,106400.0,0.60161747]
[1749411177188,0.20134987,106410.0,106400.0,0.61101596]
[1749411177347,0.20134987,106410.0,106400.0,0.62041427]
[1749411178136,0.20134987,106410.0,106400.0,0.3448125]
[1749411178339,0.20134987,106410.0,106400.0,0.6298125]
[1749411178778,0.19195226,106410.0,106400.0,0.62041427]
[1749411179180,0.19195226,106410.0,106400.0,0.61101596]
[1749411179387,0.19195226,106410.0,106400.0,0.62041436]
[1749411181245,0.19195226,106410.0,106400.0,0.620054]
[1749411182488,0.19195226,106410.0,106400.0,0.6106556]
[1749411182690,0.19195226,106410.0,106400.0,0.41328719]
[1749411182910,0.19195226,106410.0,106400.0,0.6106556]
[1749411183311,0.19195226,106410.0,106400.0,0.42268568]
[1749411183834,0.19195226,106410.0,106400.0,0.41328719]
[1749411184863,0.19195226,106410.0,106400.0,0.42268568]
[1749411190763,0.19195226,106410.0,106400.0,0.41328719]
[1749411191913,0.22345226,106410.0,106400.0,0.41328719]
[1749411192337,0.20715226,106410.0,106400.0,0.41328719]
[1749411193035,0.19195226,106410.0,106400.0,0.41328719]
[1749411205045,0.19195226,106410.0,106400.0,0.42978719]
[1749411214242,0.19195226,106410.0,106400.0,0.6271556]
[1749411215475,0.19195226,106410.0,106400.0,0.652154]
[1749411216409,0.19195226,106410.0,106400.0,0.6427556]
[1749411216630,0.21074721,106410.0,106400.0,0.65215383]
[1749411216851,0.21074721,106410.0,106400.0,0.652154]
[1749411217090,0.21074721,106410.0,106400.0,0.66155231]
[1749411217283,0.21074721,106410.0,106400.0,0.64595231]
[1749411227674,0.20134987,106410.0,106400.0,0.64595231]
[1749411232152,0.20134987,106410.0,106400.0,0.65535054]
[1749411235207,0.20134987,106410.0,106400.0,0.66474868]
[1749411236231,0.20134987,106410.0,106400.0,0.68074868]
[1749411241387,0.01339734,106410.0,106400.0,0.68074868]
[1749411241595,0.22954172,106410.0,106400.0,0.68066824]
[1749411242009,0.04158946,106410.0,106400.0,0.68066771]
[1749411243966,0.22954172,106410.0,106400.0,0.67126984]
[1749411244178,0.22954172,106410.0,106400.0,0.6806678]
[1749411247344,0.22954172,106410.0,106400.0,0.67937685]
[1749411247950,0.22954172,106410.0,106400.0,0.39445685]
[1749411248161,0.22954172,106410.0,106400.0,0.67937685]
[1749411252511,0.22954172,106410.0,106400.0,0.66337685]
[1749411264974,0.22954172,106410.0,106400.0,0.65397889]
[1749411265200,0.22014464,106410.0,106400.0,0.64458084]
[1749411265655,0.22014464,106410.0,106400.0,0.6539788]
[1749411269100,0.03219238,106410.0,106400.0,0.6689788]
[1749411271198,0.03219238,106410.0,106400.0,0.67837667]
[1749411271925,0.0133969,106410.0,106400.0,0.67837667]
[1749411272129,0.02279398,106410.0,106400.0,0.67837667]
[1749411273245,0.03219123,106410.0,106400.0,0.67837667]
[1749411274474,0.03219123,106410.0,106400.0,0.70660767]
[1749411279192,0.02279398,106410.0,106400.0,0.70660767]
[1749411279415,0.03219123,106410.0,106400.0,0.70660767]
[1749411285546,0.02279398,106410.0,106400.0,0.70660767]
[1749411285751,0.03219123,106410.0,106400.0,0.70660767]
[1749411286816,0.04158857,106410.0,106400.0,0.70660767]
[1749411287662,0.03219123,106410.0,106400.0,0.70660767]
[1749411288248,0.02279398,106410.0,106400.0,0.70660767]
[1749411288653,0.03219132,106410.0,106400.0,0.70660767]
[1749411289540,0.03219123,106410.0,106400.0,0.70660767]
[1749411293177,0.04158866,106410.0,106400.0,0.70660767]
[1749411293398,0.03219123,106410.0,106400.0,0.70660767]
[1749411293611,0.04158857,106410.0,106400.0,0.70660767]
[1749411298561,0.04158866,106410.0,106400.0,0.70660767]
[1749411299369,0.03219123,106410.0,106400.0,0.70660767]
[1749411299633,0.04158866,106410.0,106400.0,0.70660767]
[1749411300834,0.03219123,106410.0,106400.0,0.70660767]
[1749411302202,0.04158857,106410.0,106400.0,0.70660767]
[1749411302730,0.050986,106410.0,106400.0,0.70660767]
[1749411304829,0.050986,106410.0,106400.0,0.69160767]
[1749411307605,0.04158857,106410.0,106400.0,0.69160767]
[1749411307830,0.050986,106410.0,106400.0,0.69160767]
[1749411312253,0.04158857,106410.0,106400.0,0.69160767]
[1749411312422,0.050986,106410.0,106400.0,0.69160767]
[1749411324534,0.05098662,106410.0,106400.0,0.70760767]
[1749411329092,0.0415891,106410.0,106400.0,0.70760767]
[1749411335288,0.0415891,106410.0,106400.0,0.67937667]
[1749411338612,0.03219167,106410.0,106400.0,0.67937667]
[1749411339433,0.0415891,106410.0,106400.0,0.67937667]
[1749411341023,0.03219167,106410.0,106400.0,0.67937667]
[1749411347692,0.03219167,106410.0,106400.0,0.66337667]
[1749411352862,0.0415891,106410.0,106400.0,0.66337667]
[1749411353069,0.03219167,106410.0,106400.0,0.66337667]
[1749411364340,0.07268928,106410.0,106400.0,0.63723889]
[1749411364553,0.06329167,106410.0,106400.0,0.64663685]
[1749411364749,0.08208662,106410.0,106400.0,0.64663641]
[1749411367999,0.06698662,106410.0,106400.0,0.64663641]
[1749411368205,0.05098662,106410.0,106400.0,0.64663641]
[1749411384699,0.0415891,106410.0,106400.0,0.64663641]
[1749411385452,0.0415891,106410.0,106400.0,0.63723854]
[1749411385640,0.0415891,106410.0,106400.0,0.36195641]
[1749411385846,0.0415891,106410.0,106400.0,0.64659641]
[1749411386274,0.05098662,106410.0,106400.0,0.64659641]
[1749411386842,0.05098662,106410.0,106400.0,0.36195641]
[1749411387040,0.05098662,106410.0,106400.0,0.64659641]
[1749411387248,0.05098662,106410.0,106400.0,0.36195641]
[1749411387461,0.05098662,106410.0,106400.0,0.64659641]
[1749411387774,0.05098662,106410.0,106400.0,0.36195641]
[1749411387935,0.05098662,106410.0,106400.0,0.64659641]
[1749411388744,0.05098662,106410.0,106400.0,0.36195641]
[1749411388966,0.05098662,106410.0,106400.0,0.64659641]
[1749411390002,0.23893888,106410.0,106400.0,0.63719854]
[1749411390203,0.23893941,106410.0,106400.0,0.63719854]
[1749411390411,0.23893941,106410.0,106400.0,0.35255854]
[1749411390613,0.23893941,106410.0,106400.0,0.63719854]
[1749411391356,0.05098715,106410.0,106400.0,0.36195641]
[1749411391574,0.05098715,106410.0,106400.0,0.64659641]
[1749411395619,0.05098715,106410.0,106400.0,0.36195641]
[1749411395857,0.05098715,106410.0,106400.0,0.64659641]
[1749411396347,0.05098715,106410.0,106400.0,0.36195641]
[1749411396602,0.22954216,106410.0,106400.0,0.34316058]
[1749411396834,0.22954216,106410.0,106400.0,0.62776058]
[1749411397085,0.22954216,106410.0,106400.0,0.34316058]
[1749411397286,0.22954216,106410.0,106400.0,0.63715854]
[1749411401778,0.22954216,106410.0,106400.0,0.35255854]
[1749411402008,0.22954216,106410.0,106400.0,0.63715854]
[1749411402229,0.0415899,106410.0,106400.0,0.64655641]
[1749411403737,0.0415899,106410.0,106400.0,0.66185641]
[1749411406229,0.03219229,106410.0,106400.0,0.66185641]
[1749411412163,0.02819229,106410.0,106400.0,0.66185641]
[1749411412616,0.02819229,106410.0,106400.0,0.66085641]
[1749411412854,0.02819229,106410.0,106400.0,0.66285641]
[1749411415148,0.03019229,106410.0,106400.0,0.66285641]
[1749411419542,0.03019229,106410.0,106400.0,0.66281641]
[1749411439756,0.02079477,106410.0,106400.0,0.66281641]
[1749411442861,0.03019229,106410.0,106400.0,0.66281641]
[1749411444797,0.02079477,106410.0,106400.0,0.66281641]
[1749411451018,0.03019168,106410.0,106400.0,0.66281641]
[1749411452516,0.03958849,106410.0,106400.0,0.66281641]
[1749411458333,0.03958849,106410.0,106400.0,0.69104841]
[1749411465775,0.04898601,106410.0,106400.0,0.69104841]
[1749411470638,0.04898601,106410.0,106400.0,0.40648841]
[1749411470886,0.04898601,106410.0,106400.0,0.69096841]
[1749411479372,0.0395884,106410.0,106400.0,0.69096841]
[1749411479593,0.04898583,106410.0,106400.0,0.69092841]
[1749411488285,0.0395884,106410.0,106400.0,0.69092841]
[1749411493128,0.04898583,106410.0,106400.0,0.69092841]
[1749411494404,0.0395884,106410.0,106400.0,0.69092841]
[1749411496818,0.0411534,106410.0,106400.0,0.69092841]
[1749411504701,0.03175606,106410.0,106400.0,0.69092841]
[1749411504928,0.0411534,106410.0,106400.0,0.69092841]
[1749411509364,0.03175606,106410.0,106400.0,0.69092841]
[1749411509585,0.0411534,106410.0,106400.0,0.69092841]
[1749411513483,0.0411534,106410.0,106400.0,0.69088841]
[1749411513909,0.03175606,106410.0,106400.0,0.69088841]
[1749411514038,0.0411534,106410.0,106400.0,0.69088841]
[1749411515151,0.04115331,106410.0,106400.0,0.69088841]
[1749411515558,0.03175606,106410.0,106400.0,0.69088841]
[1749411515752,0.0411534,106410.0,106400.0,0.69088841]
[1749411518300,0.0411534,106410.0,106400.0,0.66265641]
[1749411520939,0.0411534,106410.0,106400.0,0.37825641]
[1749411521147,0.0411534,106410.0,106400.0,0.66265641]
[1749411521755,0.03175606,106410.0,106400.0,0.66265641]
[1749411521962,0.0411534,106410.0,106400.0,0.66265641]
[1749411523310,0.04115331,106410.0,106400.0,0.66265641]
[1749411529347,0.04115331,106410.0,106400.0,0.37825641]
[1749411529800,0.04115331,106410.0,106400.0,0.66261641]
[1749411539621,0.05055065,106410.0,106400.0,0.66261641]
[1749411539826,0.04555065,106410.0,106400.0,0.66261641]
[1749411540922,0.03915357,106410.0,106400.0,0.66261641]
[1749411541555,0.04855065,106410.0,106400.0,0.66261641]
[1749411541738,0.04855065,106410.0,106400.0,0.37825641]
[1749411541981,0.04855065,106410.0,106400.0,0.66257641]
[1749411542188,0.04855065,106410.0,106400.0,0.37825641]
[1749411542395,0.04855065,106410.0,106400.0,0.66257641]
[1749411543046,0.03915384,106410.0,106400.0,0.66257641]
[1749411543856,0.04855127,106410.0,106400.0,0.66257641]
[1749411544117,0.04855127,106410.0,106400.0,0.37825641]
[1749411544493,0.04855127,106410.0,106400.0,0.66257641]
[1749411544919,0.03915384,106410.0,106400.0,0.66257641]
[1749411546869,0.04855127,106410.0,106400.0,0.66257641]
[1749411547080,0.04855127,106410.0,106400.0,0.64727641]
[1749411549939,0.04855171,106410.0,106400.0,0.64727641]
[1749411550801,0.04855171,106410.0,106400.0,0.36295641]
[1749411551034,0.04855171,106410.0,106400.0,0.64727641]
[1749411551527,0.02975702,106410.0,106400.0,0.62848102]
[1749411551734,0.02975702,106410.0,106400.0,0.63787889]